fUSD/lending_fUSD_20260128
["ID","MTS","AMOUNT","RATE_DAILY","PERIOD"]
[403848795,1769595038841,-455.99,0.00015219,2]
[403848796,1769595038852,-792.0,0.00015281,2]
[403848797,1769595038861,-150.0020666,0.00015289,2]
[403848798,1769595038870,-792.0,0.00015317,2]
[403848799,1769595038880,-792.0,0.00015385,2]
[403848800,1769595038889,-150.0,0.00015396,2]
[403848801,1769595038898,-792.0,0.00015446,2]
[403848802,1769595038908,-792.0,0.00015462,2]
[403848803,1769595038918,-633.15,0.00015554,2]
[403848804,1769595038927,-792.0,0.00015574,2]
[403848805,1769595038937,-792.0,0.00015584,2]
[403848806,1769595038946,-297.87,0.00015646,7]
[403848807,1769595038955,-792.0,0.00015657,2]
[403848808,1769595038964,-308.16,0.00015724,2]
[403848809,1769595038974,-792.0,0.00015725,2]
[403848810,1769595038984,-433.0,0.00015863,2]
[403848811,1769595038994,-792.0,0.00015887,2]
[403848812,1769595039004,-505.62,0.00015918,2]
[403848813,1769595039014,-792.0,0.00015939,2]
[403848814,1769595039024,-792.0,0.00015957,2]
[403848815,1769595039034,-792.0,0.00015998,2]
[403848816,1769595039044,-871.25,0.00016009,2]
[403848817,1769595039054,-792.0,0.00016032,2]
[403848818,1769595039063,-792.0,0.00016098,2]
[403848819,1769595039073,-792.0,0.00016307,2]
[403848820,1769595039083,-792.0,0.00016327,2]
[403848821,1769595039093,-792.0,0.00016369,2]
[403848822,1769595039102,-500.48566771,0.00016373,2]
[403848823,1769595039112,-500.97745752,0.00016373,2]
[403848824,1769595039122,-501.68839714,0.00016373,2]
[403848825,1769595039132,-503.3190513,0.00016373,2]
[403848826,1769595039142,-309.22872821,0.00016373,2]
[403848827,1769595039152,-175.80264233,0.00016373,2]
[403848828,1769595039161,-225.28073498,0.00016373,2]
[403848829,1769595039171,-162.42239135,0.00016373,2]
[403848830,1769595039180,-503.05738701,0.00016373,2]
[403848831,1769595039190,-502.66827993,0.00016373,2]
[403848832,1769595039199,-164.03674795,0.00016373,2]
[403848833,1769595039209,-500.0,0.00016373,2]
[403848834,1769595039218,-2351.0,0.00016391,2]
[403848835,1769595039231,-792.0,0.00016401,2]
[403848836,1769595039244,-204.01,0.00016412,2]
[403848837,1769595039258,-792.0,0.00016413,2]
[403848838,1769595039272,-792.0,0.00016422,2]
[403848839,1769595039286,-1864.0,0.00016438,2]
[403848840,1769595039298,-1114.0,0.00016438,2]
[403848841,1769595039309,-251.2917898,0.00016477,2]
[403848842,1769595039319,-505.62,0.00016515,2]
[403848843,1769595039331,-372.78,0.00016713,2]
[403848844,1769595039343,-150.0020666,0.00016715,2]
[403848845,1769595039355,-509.75787048,0.00016921,2]
[403848846,1769595039368,-25144.47464025,0.00016942,2]
[403848847,1769595039380,-578.20924308,0.0001699,2]
[403848848,1769595039392,-322.6107,0.0001699,2]
[403848849,1769595039405,-668.71620862,0.0001699,2]
[403848850,1769595039418,-209.40437684,0.0001699,2]
[403848851,1769595039430,-250.0,0.00017,2]
[403848852,1769595039441,-217.15233878,0.00017045,2]
[403848853,1769595039452,-225.18697532,0.000171,2]
[403848854,1769595039463,-505.62,0.00017112,2]
[403848855,1769595039473,-233.51889341,0.00017155,2]
[403848856,1769595039483,-346.0,0.00017163,2]
[403848857,1769595039495,-264.5,0.000172,2]
[403848858,1769595039507,-242.15909246,0.0001721,2]
[403848859,1769595039520,-200.0,0.00017251,2]
[403848860,1769595039532,-251.11897888,0.00017265,2]
[403848861,1769595039544,-260.4103811,0.0001732,2]
[403848862,1769595039557,-270.0455652,0.00017375,2]
[403848863,1769595039569,-280.03725112,0.0001743,2]
[403848864,1769595039581,-290.39862941,0.00017485,2]
[403848865,1769595039594,-301.1433787,0.0001754,2]
[403848866,1769595039606,-505.62,0.00017709,2]
[403848867,1769595039619,-1294.9884,0.000179,2]
[403848868,1769595039630,-501.0,0.00018,2]
[403848869,1769595039642,-3292.0,0.0001803,2]
[403848870,1769595039654,-200.0,0.00018082,2]
[403848871,1769595039665,-200.0,0.00018082,3]
[403848872,1769595039678,-200.0,0.00018082,4]
[403848873,1769595039690,-200.0,0.00018082,5]
[403848874,1769595039702,-200.0,0.00018082,6]
[403848875,1769595039714,-200.0,0.00018082,7]
[403848876,1769595039726,-292.19472761,0.00018082,8]
[403848877,1769595039738,-150.0020666,0.00018141,2]
[403848878,1769595039750,-158.63104359,0.00018173,2]
[403848879,1769595039763,-505.62,0.00018306,2]
[403848880,1769595039774,-334.5472959,0.00018359,2]
[403848881,1769595039786,-154.52102506,0.00018589,2]
[403848882,1769595039797,-534.66,0.00018637,2]
[403848883,1769595039810,-395.48,0.00018911,2]
[403848884,1769595039827,-300.0,0.00019,2]
[403848885,1769595039840,-200.19495985,0.00019082,2]
[403848886,1769595039853,-264.5,0.00019216,2]
[403848888,1769595039864,-150.0020666,0.00019567,7]
[403848890,1769595039876,-2000.0,0.000197,2]
[403848891,1769595039889,-2000.0,0.000197,2]
[403848892,1769595039899,-361.13638142,0.00019728,2]
[403848893,1769595039910,-621.78829553,0.00019729,2]
[403848894,1769595039922,-4609.0,0.00019833,2]
[403848895,1769595039934,-500.0,0.00019978,2]
[403848896,1769595039945,-200.97196762,0.00019978,2]
[403848897,1769595039959,-13710.44883818,0.00020236,2]
[403848898,1769595039978,-446.49837639,0.00020236,2]
[403848899,1769595039996,-10987.52742568,0.00020236,2]
[403848900,1769595040007,-500.0,0.00020685,2]
[403848901,1769595040020,-1165.0,0.00020726,7]
[403848902,1769595040030,-500.0,0.00020726,2]
[403848903,1769595040043,-1165.0,0.00020781,7]
[403848904,1769595040056,-500.0,0.00020781,2]
[403848905,1769595040068,-1165.0,0.00020836,7]
[403848906,1769595040081,-273.57013707,0.00020836,2]
[403848907,1769595040096,-226.42986293,0.00020836,2]
[403848908,1769595040111,-292.55277707,0.0002089,7]
[403848909,1769595040124,-872.44722293,0.0002089,7]
[403848910,1769595040135,-500.0,0.0002089,2]
[403848911,1769595040146,-1165.0,0.00020945,7]
[403848912,1769595040157,-500.0,0.00020945,2]
[403848913,1769595040183,-150.0020666,0.00020993,12]
[403848914,1769595040194,-1165.0,0.00021,7]
[403848915,1769595040206,-500.0,0.00021,2]
[403848916,1769595040218,-359.66,0.00021,7]
[403848917,1769595040229,-1165.0,0.00021055,7]
[403848918,1769595040240,-500.0,0.00021055,2]
[403848919,1769595040251,-598.93069983,0.0002111,7]
[403848920,1769595041493,5713.29694384,0.00013497,2]
[403848921,1769595042613,10000.01,0.00013497,2]
[403848923,1769595042672,834.64532541,0.00013497,2]
[403848924,1769595042733,-566.06930017,0.0002111,7]
[403848925,1769595042744,-163.93069983,0.0002111,2]
[403848926,1769595042778,-336.06930017,0.0002111,2]
[403848927,1769595042789,-10076.80540011,0.00021152,2]
[403848929,1769595042799,-1165.0,0.00021164,7]
[403848930,1769595042809,-150.0,0.00021164,2]
[403848931,1769595042818,-6726.0,0.000212,2]
[403848932,1769595042827,-1165.0,0.00021219,7]
[403848933,1769595042840,-264.5,0.00021231,2]
[403848934,1769595042854,-1165.0,0.00021274,7]
[403848935,1769595042864,-1165.0,0.00021329,7]
[403848936,1769595042874,-1165.0,0.00021384,7]
[403848937,1769595042884,-1165.0,0.00021438,7]
[403848938,1769595042894,-1165.0,0.00021493,7]
[403848939,1769595042905,-1165.0,0.00021548,7]
[403848940,1769595042915,-1165.0,0.00021603,7]
[403848941,1769595042925,-1165.0,0.00021658,7]
[403848942,1769595042935,-1165.0,0.00021712,7]
[403848944,1769595042945,-1165.0,0.00021767,7]
[403848946,1769595042955,-1000.0,0.00021809,2]
[403848947,1769595042965,-1838.0,0.00021816,2]
[403848948,1769595042975,-1165.0,0.00021822,7]
[403848949,1769595042984,-1165.0,0.00021877,7]
[403848950,1769595042994,-500.0,0.00021917,2]
[403848951,1769595043004,-500.0,0.00021917,2]
[403848952,1769595043013,-500.0,0.00021917,2]
[403848953,1769595043028,-500.0,0.00021917,2]
[403848954,1769595043038,-500.0,0.00021917,2]
[403848955,1769595043047,-500.0,0.00021917,2]
[403848956,1769595043057,-500.0,0.00021917,2]
[403848957,1769595043067,-500.0,0.00021917,2]
[403848958,1769595043076,-500.0,0.00021917,2]
[403848959,1769595043086,-500.0,0.00021917,2]
[403848960,1769595043096,-500.0,0.00021917,2]
[403848961,1769595043105,-500.0,0.00021917,2]
[403848962,1769595043116,-380.64938174,0.00021917,2]
[403848963,1769595043126,-5000.0,0.00021918,2]
[403848964,1769595043135,-800.0,0.00021918,4]
[403848965,1769595043148,-800.0,0.00021918,4]
[403848966,1769595043158,-800.0,0.00021918,4]
[403848967,1769595043167,-800.0,0.00021918,4]
[403848968,1769595043176,-800.0,0.00021918,4]
[403848969,1769595043186,-800.0,0.00021918,4]
[403848970,1769595043196,-800.0,0.00021918,4]
[403848971,1769595043205,-800.0,0.00021918,4]
[403848972,1769595043215,-150.0,0.00021918,30]
[403848973,1769595043224,-150.0,0.00021918,2]
[403848974,1769595043234,-500.0,0.00021918,2]
[403848975,1769595043244,-1165.0,0.00021931,7]
[403848976,1769595043253,-500.0,0.00021973,2]
[403848977,1769595043263,-500.47145403,0.00021973,2]
[403848978,1769595043273,-150.0,0.00021973,2]
[403848979,1769595043282,-500.0,0.00021973,2]
[403848980,1769595043292,-500.0,0.00021973,2]
[403848981,1769595043301,-500.0,0.00021973,2]
[403848982,1769595043311,-500.0,0.00021973,2]
[403848983,1769595043320,-500.0,0.00021973,2]
[403848984,1769595043330,-500.0,0.00021973,2]
[403848985,1769595043340,-500.0,0.00021973,2]
[403848986,1769595043350,-500.0,0.00021973,2]
[403848987,1769595043359,-500.0,0.00021973,2]
[403848988,1769595043369,-500.0,0.00021973,2]
[403848989,1769595043379,-500.0,0.00021973,2]
[403848990,1769595043388,-500.0,0.00021973,2]
[403848991,1769595043398,-163.31548462,0.00021973,2]
[403848992,1769595043407,-500.0,0.00021973,2]
[403848993,1769595043417,-500.0,0.00021973,2]
[403848994,1769595043427,-500.0,0.00021973,2]
[403848995,1769595043437,-380.77450093,0.00021973,2]
[403848997,1769595043447,-151.01838811,0.00021973,2]
[403848998,1769595043457,-175.36382972,0.00021973,2]
[403848999,1769595043466,-500.0,0.00021973,2]
[403849000,1769595043476,-500.0,0.00021973,2]
[403849001,1769595043486,-500.0,0.00021973,2]
[403849002,1769595043495,-500.5268179,0.00021973,2]
[403849003,1769595043504,-500.0,0.00021973,2]
[403849004,1769595043514,-500.71324931,0.00021973,2]
[403849005,1769595043523,-160.08,0.00021973,2]
[403849006,1769595043533,-500.0,0.00021973,2]
[403849007,1769595043543,-500.0,0.00021973,2]
[403849008,1769595043553,-210.16186211,0.00021973,2]
[403849009,1769595043563,-500.72062274,0.00021973,2]
[403849010,1769595043573,-500.0,0.00021973,2]
[403849011,1769595043583,-160.17378666,0.00021973,2]
[403849012,1769595043595,-500.0,0.00021973,2]
[403849014,1769595043606,-500.8614743,0.00021973,2]
[403849015,1769595043617,-500.0,0.00021973,2]
[403849016,1769595043627,-500.0,0.00021973,2]
[403849017,1769595043638,-501.71470832,0.00021973,2]
[403849018,1769595043647,-500.0,0.00021973,2]
[403849019,1769595043658,-500.0,0.00021973,2]
[403849020,1769595043668,-500.0,0.00021973,2]
[403849021,1769595043677,-500.0,0.00021973,2]
[403849022,1769595043687,-431.84849978,0.00021973,2]
[403849023,1769595043696,-500.0,0.00021973,2]
[403849024,1769595043705,-643.51237455,0.00021973,2]
[403849025,1769595043714,-500.0,0.00021973,2]
[403849026,1769595043723,-500.0,0.00021973,2]
[403849027,1769595043733,-500.5908324,0.00021973,2]
[403849028,1769595043742,-500.0,0.00021973,2]
[403849029,1769595043751,-500.0,0.00021973,2]
[403849030,1769595043762,-150.08480682,0.00021973,2]
[403849031,1769595043773,-500.0,0.00021973,2]
[403849032,1769595043783,-501.00493719,0.00021973,2]
[403849033,1769595043793,-500.0,0.00021973,2]
[403849034,1769595043802,-563.34898698,0.00021973,2]
[403849035,1769595043812,-500.0,0.00021973,2]
[403849036,1769595043821,-391.88485596,0.00021973,2]
[403849037,1769595043831,-150.42019668,0.00021973,30]
[403849038,1769595043842,-500.0,0.00021973,2]
[403849039,1769595043852,-678.41,0.00022,7]
[403849040,1769595043862,-928.806,0.00022021,2]
[403849041,1769595043872,-1208.946,0.00022021,2]
[403849042,1769595043883,-2443.0,0.00022021,2]
[403849043,1769595043892,-567.0,0.00022021,2]
[403849044,1769595043902,-500.0,0.00022028,2]
[403849045,1769595043912,-5930.0,0.00022036,2]
[403849046,1769595043922,-500.0,0.00022082,2]
[403849047,1769595043931,-500.0,0.00022137,2]
[403849048,1769595043941,-617.145,0.00022156,2]
[403849049,1769595043952,-3487.934,0.00022156,2]
[403849050,1769595043962,-1413.751,0.00022156,2]
[403849051,1769595043971,-1338.52,0.00022156,2]
[403849052,1769595043980,-184.736,0.00022156,2]
[403849053,1769595043991,-1273.033,0.00022156,2]
[403849054,1769595044000,-308.16,0.00022178,2]
[403849055,1769595044010,-500.0,0.00022192,2]
[403849056,1769595044020,-500.0,0.00022247,2]
[403849057,1769595044029,-500.0,0.00022302,2]
[403849058,1769595044039,-500.0,0.00022356,2]
[403849059,1769595044049,-500.0,0.00022411,2]
[403849060,1769595044059,-150.0020666,0.00022419,17]
[403849061,1769595044069,-501.0,0.00022429,6]
[403849062,1769595044078,-500.0,0.00022466,2]
[403849063,1769595044088,-1000.0,0.00022521,2]
[403849064,1769595044098,-150.0,0.00022521,2]
[403849065,1769595044108,-1000.88636946,0.00022521,2]
[403849066,1769595044119,-1000.0,0.00022521,2]
[403849067,1769595044129,-501.42687001,0.00022521,2]
[403849068,1769595044139,-1000.0,0.00022521,2]
[403849069,1769595044149,-1000.81070746,0.00022521,2]
[403849070,1769595044164,-694.5705092,0.00022521,2]
[403849071,1769595044175,-501.25105455,0.00022521,2]
[403849072,1769595044184,-1000.0,0.00022521,2]
[403849073,1769595044195,-1000.0,0.00022521,2]
[403849074,1769595044206,-535.37073986,0.00022521,2]
[403849075,1769595044216,-1000.0,0.00022521,2]
[403849076,1769595044227,-1000.92692502,0.00022521,2]
[403849077,1769595044237,-1000.0,0.00022521,2]
[403849078,1769595044247,-1000.0,0.00022521,2]
[403849079,1769595044256,-302.18506883,0.00022521,2]
[403849080,1769595044266,-1000.0,0.00022521,2]
[403849081,1769595044276,-1000.0,0.00022521,2]
[403849082,1769595044285,-1000.0,0.00022521,2]
[403849083,1769595044295,-1000.0,0.00022521,2]
[403849084,1769595044305,-1001.74500581,0.00022521,2]
[403849085,1769595044315,-1000.0,0.00022521,2]
[403849086,1769595044325,-1000.0,0.00022521,2]
[403849087,1769595044335,-1142.18131833,0.00022521,2]
[403849088,1769595044346,-1000.0,0.00022521,2]
[403849089,1769595044356,-1000.0,0.00022521,2]
[403849090,1769595044368,-1000.0,0.00022521,2]
[403849091,1769595044378,-1000.0,0.00022521,2]
[403849092,1769595044388,-501.35196587,0.00022521,2]
[403849093,1769595044398,-1001.48093969,0.00022521,2]
[403849094,1769595044408,-1000.0,0.00022521,2]
[403849095,1769595044419,-1000.0,0.00022521,2]
[403849096,1769595044429,-1000.0,0.00022521,2]
[403849097,1769595044440,-1001.07065245,0.00022521,2]
[403849098,1769595044452,-1000.0,0.00022521,2]
[403849099,1769595044462,-591.99620663,0.00022521,2]
[403849100,1769595044472,-1000.0,0.00022521,2]
[403849101,1769595044482,-1000.0,0.00022521,2]
[403849102,1769595044493,-500.0,0.00022521,2]
[403849103,1769595044504,-500.0,0.00022576,2]
[403849104,1769595044515,-500.0,0.0002263,2]
[403849105,1769595044525,-500.0,0.00022685,2]
[403849106,1769595044536,-634.80759439,0.0002274,2]
[403849107,1769595044546,-150.0,0.00022973,2]
[403849108,1769595044556,-164.35711812,0.00022973,2]
[403849109,1769595044567,-1500.0,0.00023068,2]
[403849110,1769595044577,-237.59342723,0.00023068,2]
[403849111,1769595044587,-1500.0,0.00023068,2]
[403849112,1769595044598,-1500.0,0.00023068,2]
[403849113,1769595044608,-892.31600329,0.00023068,2]
[403849114,1769595044619,-901.18542814,0.00023068,2]
[403849115,1769595044629,-1500.0,0.00023068,2]
[403849116,1769595044640,-1500.0,0.00023068,2]
[403849117,1769595044649,-1500.0,0.00023068,2]
[403849118,1769595044659,-1500.0,0.00023068,2]
[403849119,1769595044669,-1500.0,0.00023068,2]
[403849120,1769595044679,-500.8447642,0.00023068,2]
[403849121,1769595044689,-287.70306997,0.00023068,2]
[403849122,1769595044699,-1500.0,0.00023068,2]
[403849123,1769595044708,-500.84820247,0.00023068,2]
[403849124,1769595044718,-1500.79902774,0.00023068,2]
[403849125,1769595044728,-1500.0,0.00023068,2]
[403849126,1769595044737,-1502.13077454,0.00023068,2]
[403849127,1769595044747,-1500.0,0.00023068,2]
[403849128,1769595044759,-1500.0,0.00023068,2]
[403849129,1769595044770,-1500.0,0.00023068,2]
[403849130,1769595044780,-1500.0,0.00023068,2]
[403849131,1769595044790,-1502.0815119,0.00023068,2]
[403849132,1769595044800,-1500.0,0.00023068,2]
[403849133,1769595044810,-1500.0,0.00023068,2]
[403849134,1769595044822,-264.5,0.00023247,2]
[403849135,1769595044833,-372.78,0.00023399,2]
[403849136,1769595044843,-2000.0,0.000234,2]
[403849137,1769595044853,-1000.0,0.000234,2]
[403849138,1769595044863,-250.0,0.00023521,2]
[403849139,1769595044873,-154.52102506,0.0002353,2]
[403849140,1769595044883,-25144.47464025,0.00023531,2]
[403849141,1769595044892,-355.21403355,0.00023543,2]
[403849142,1769595044902,-166.15653411,0.00023544,2]
[403849143,1769595044911,-436.39003316,0.00023616,2]
[403849144,1769595044920,-461.93263446,0.00023616,2]
[403849145,1769595044930,-500.0,0.00023616,2]
[403849146,1769595044940,-563.2071984,0.00023616,2]
[403849147,1769595044950,-1002.50538317,0.00023616,2]
[403849148,1769595044960,-500.0,0.00023616,2]
[403849149,1769595044970,-1002.59867678,0.00023616,2]
[403849150,1769595044980,-174.36957488,0.00023616,2]
[403849151,1769595044990,-619.15242156,0.00023616,2]
[403849152,1769595044999,-2000.0,0.00023616,2]
[403849153,1769595045009,-501.4315865,0.00023616,2]
[403849154,1769595045019,-1502.31324389,0.00023616,2]
[403849155,1769595045029,-1001.66009161,0.00023616,2]
[403849156,1769595045039,-288.94047473,0.00023616,2]
[403849157,1769595045050,-501.67955883,0.00023616,2]
[403849158,1769595045059,-1066.45365623,0.00023616,2]
[403849159,1769595045069,-205.42965008,0.00023654,2]
[403849160,1769595045078,-150.0020666,0.00023845,22]
[403849161,1769595045088,-350.0,0.00024068,2]
[403849162,1769595045221,-2500.0,0.00024164,2]
[403849163,1769595045232,-172.95,0.00024384,14]
[403849164,1769595045241,-204.01,0.00024497,2]
[403849165,1769595045249,-1000.0,0.00024536,2]
[403849166,1769595045259,-450.0,0.00024616,2]
[403849167,1769595045268,-1000.0,0.00024658,2]
[403849168,1769595045277,-150.0,0.00024658,2]
[403849169,1769595045287,-633.37011008,0.00024712,2]
[403849170,1769595045296,-600.0,0.000249,9]
[403849171,1769595045304,-376.70269554,0.00025021,2]
[403849172,1769595045347,-539.29730446,0.00025021,2]
[403849173,1769595045356,-686.99406958,0.00025021,2]
[403849174,1769595045367,-517.00593042,0.00025021,2]
[403849175,1769595045376,-1265.886,0.00025021,2]
[403849176,1769595045386,-567.0,0.00025021,2]
[403849177,1769595045394,-5930.0,0.00025036,2]
[403849178,1769595045403,-615.0,0.00025156,2]
[403849179,1769595045412,-3477.0,0.00025156,2]
[403849180,1769595045421,-1409.0,0.00025156,2]
[403849181,1769595045430,-1333.0,0.00025156,2]
[403849182,1769595045439,-184.0,0.00025156,2]
[403849183,1769595045448,-1270.0,0.00025156,2]
[403849184,1769595045458,-264.5,0.00025263,2]
[403849185,1769595045466,-150.0020666,0.00025271,26]
[403849186,1769595045475,-200.0,0.00025319,2]
[403849187,1769595045484,-308.16,0.00026456,2]
[403849188,1769595045493,-150.0020666,0.00026697,31]
[403849189,1769595045502,-406.10248589,0.00026725,2]
[403849190,1769595045511,-205.65,0.00026783,2]
[403849191,1769595045522,-25144.47464025,0.00026825,2]
[403849192,1769595045532,-501.0,0.00026857,10]
[403849193,1769595045542,-2000.0,0.000271,2]
[403849194,1769595045551,-1000.0,0.000271,2]
[403849195,1769595045560,-303.0,0.000271,2]
[403849196,1769595045570,-1000.0,0.00027262,2]
[403849197,1769595045581,-264.5,0.00027279,2]
[403849198,1769595045590,-150.0,0.00027369,2]
[403849199,1769595045600,-385.84,0.00027397,120]
[403849200,1769595045609,-300.0,0.00027397,2]
[403849201,1769595045618,-303.80735434,0.00027441,14]
[403849202,1769595045627,-385.84,0.00027452,120]
[403849203,1769595045636,-507.909384,0.00028,7]
[403849204,1769595045690,-170.500616,0.00028,7]
[403849205,1769595045699,-765.93076401,0.00028021,2]
[403849206,1769595045710,-150.06923599,0.00028021,2]
[403849207,1769595045719,-1204.0,0.00028021,2]
[403849208,1769595045728,-73.83164901,0.00028036,2]
[403849209,1769595045740,-5856.16835099,0.00028036,2]
[403849210,1769595045749,-154.52102506,0.00028472,2]
[403849211,1769595045758,-1497.0,0.000286,5]
[403849212,1769595045770,-385.84,0.00028767,120]
[403849213,1769595045780,-1078.98,0.000288,14]
[403849214,1769595045789,-264.5,0.00029294,2]
[403849215,1769595045798,-150.0020666,0.00029549,39]
[403849216,1769595045809,-204.01,0.00029816,2]
[403849217,1769595045820,-1000.0,0.00029988,2]
[403849218,1769595045829,-17298.37119757,0.0003012,2]
[403849219,1769595045843,-801.54783843,0.0003012,2]
[403849220,1769595045854,-1059.44336652,0.0003012,2]
[403849221,1769595045865,-834.92559756,0.0003012,2]
[403849222,1769595045876,-348.7328232,0.0003012,2]
[403849223,1769595045887,-1847.29706136,0.0003012,2]
[403849224,1769595045897,-495.68719811,0.0003012,2]
[403849225,1769595045908,-732.18335078,0.0003012,2]
[403849227,1769595045919,-1726.28620672,0.0003012,2]
[403849228,1769595045928,-2000.0,0.000308,2]
[403849229,1769595045937,-535.95218449,0.00030941,28]
[403849230,1769595045946,-150.0020666,0.00030975,43]
[403849231,1769595045955,-916.0,0.00031021,2]
[403849232,1769595045964,-1204.0,0.00031021,2]
[403849233,1769595045973,-5930.0,0.00031036,2]
[403849234,1769595045982,-501.0,0.00031286,14]
[403849235,1769595045992,-264.5,0.0003131,2]
[403849236,1769595046001,-205.44,0.00031786,2]
[403849237,1769595046010,-151.0,0.00032185,2]
[403849238,1769595046019,-42754.54779938,0.00032462,2]
[403849239,1769595046035,-127648.90720682,0.00032462,2]
[403849240,1769595046044,-2489.87817175,0.00032614,2]
[403849241,1769595046053,-1000.0,0.00032714,2]
[403849242,1769595046062,-205.44,0.00032837,2]
[403849243,1769595046071,-801.7524148,0.00032941,28]
[403849244,1769595046080,-1084.7925,0.00032941,28]
[403849245,1769595046090,-4606.34,0.000332,14]
[403849246,1769595046099,-1717.53,0.000332,14]
[403849247,1769595046108,-264.5,0.00033326,5]
[403849248,1769595046117,-154.52102506,0.00033414,2]
[403849249,1769595046127,-25144.47464025,0.00033414,2]
[403849250,1769595046136,-166.15653411,0.0003344,5]
[403849251,1769595046145,-201.902198,0.00034,9]
[403849252,1769595046154,-1204.0,0.00034021,2]
[403849253,1769595046162,-5930.0,0.00034036,2]
[403849254,1769595046172,-2000.0,0.000345,2]
[403849255,1769595046181,-678.41,0.000345,14]
[403849256,1769595046190,-2489.8781717,0.00034751,2]
[403849257,1769595046200,-1000.0,0.00034855,2]
[403849258,1769595046211,-1000.0,0.0003487,2]
[403849259,1769595046221,-1000.0,0.00034877,2]
[403849260,1769595046232,-150.0,0.00034941,2]
[403849261,1769595046242,-1000.0,0.00034963,2]
[403849262,1769595046251,-486.92539922,0.00035,30]
[403849263,1769595046260,-406.10248587,0.00035011,2]
[403849264,1769595046269,-1000.0,0.00035018,2]
[403849265,1769595046278,-1000.0,0.00035031,2]
[403849266,1769595046287,-1000.0,0.00035042,2]
[403849267,1769595046296,-1000.0,0.0003507,2]
[403849268,1769595046305,-1000.0,0.00035136,2]
[403849269,1769595046313,-150.0,0.00035149,2]
[403849270,1769595046322,-1000.0,0.00035178,2]
[403849271,1769595046331,-150.0,0.00035189,2]
[403849272,1769595046340,-1000.0,0.00035202,2]
[403849273,1769595046349,-150.0,0.00035204,2]
[403849274,1769595046358,-1000.0,0.00035205,2]
[403849275,1769595046367,-1000.0,0.00035209,2]
[403849276,1769595046377,-1000.0,0.00035233,2]
[403849277,1769595046387,-746.56327826,0.00035246,2]
[403849278,1769595046396,-150.0,0.00035247,2]
[403849279,1769595046405,-1000.0,0.00035252,2]
[403849280,1769595046414,-166.18061805,0.00035253,55]
[403849281,1769595046423,-150.0,0.00035286,2]
[403849283,1769595046432,-272.02,0.00035342,2]
[403849284,1769595046442,-264.5,0.00035342,7]
[403849285,1769595046452,-150.0,0.00035344,2]
[403849286,1769595046461,-150.0,0.00035361,2]
[403849287,1769595046470,-150.0,0.0003538,2]
[403849288,1769595046480,-1000.0,0.00035391,2]
[403849289,1769595046489,-1000.0,0.00035391,2]
[403849290,1769595046498,-1717.53,0.000354,14]
[403849291,1769595046508,-281.98695942,0.00035443,2]
[403849292,1769595046517,-1000.0,0.0003548,2]
[403849293,1769595046527,-1000.0,0.000355,2]
[403849294,1769595046536,-1000.0,0.00035516,2]
[403849295,1769595046545,-1000.0,0.00035532,2]
[403849296,1769595046554,-150.0,0.00035548,2]
[403849297,1769595046563,-150.0,0.00035548,2]
[403849298,1769595046572,-150.0,0.0003565,7]
[403849299,1769595046582,-150.0,0.00035692,7]
[403849300,1769595046596,-150.0,0.00035694,7]
[403849301,1769595046605,-1000.0,0.00035696,7]
[403849302,1769595046614,-150.0,0.00035705,7]
[403849303,1769595046623,-501.0,0.00035714,18]
[403849304,1769595046632,-1000.0,0.00035723,7]